[Event "4. Memorial Svat.Hastika OPEN"]
[Site "Jesenik, Czech Republic"]
[Date "2022.09.03"]
[Round "5.6"]
[White "Cempel, Jaroslav"]
[Black "Basler, Jan"]
[Result "1-0"]
[TimeControl "720+3"]
[WhiteFideId "300730"]
[BlackFideId "23718420"]
[WhiteElo "1911"]
[BlackElo "1285"]

1. e4 {[%clk 00:11:14]} {[%emt 00:00:52]} e5 {[%clk 00:12:05]} {[%emt
00:00:02]} 2. f4 {[%clk 00:11:08]} {[%emt 00:00:08]} exf4 {[%clk 00:12:02]}
{[%emt 00:00:06]} 3. Be2 {[%clk 00:11:10]} Qh4+ {[%clk 00:11:37]} {[%emt
00:00:29]} 4. Kf1 {[%clk 00:11:12]} Nc6 {[%clk 00:10:41]} {[%emt 00:01:00]} 5.
Nf3 {[%clk 00:11:09]} {[%emt 00:00:06]} Qd8 {[%clk 00:10:42]} {[%emt 00:00:02]}
6. d4 {[%clk 00:11:08]} {[%emt 00:00:04]} d5 {[%clk 00:10:32]} {[%emt
00:00:13]} 7. e5 {[%clk 00:11:01]} {[%emt 00:00:10]} f6 {[%clk 00:10:32]}
{[%emt 00:00:03]} 8. Bxf4 {[%clk 00:10:47]} {[%emt 00:00:17]} Bf5 {[%clk
00:09:28]} {[%emt 00:01:08]} 9. Nc3 {[%clk 00:10:37]} {[%emt 00:00:12]} Be4
{[%clk 00:09:22]} {[%emt 00:00:09]} 10. Bb5 {[%clk 00:09:55]} {[%emt 00:00:44]}
Qd7 {[%clk 00:08:28]} {[%emt 00:00:58]} 11. Qe2 {[%clk 00:08:28]} {[%emt
00:01:30]} f5 {[%clk 00:08:16]} {[%emt 00:00:15]} 12. Ng5 {[%clk 00:07:40]}
{[%emt 00:00:51]} h6 {[%clk 00:07:25]} {[%emt 00:00:54]} 13. Qh5+ {[%emt
00:01:20]} Ke7 {[%clk 00:04:23]} {[%emt 00:03:03]} 14. Qf7+ {[%clk 00:06:12]}
{[%emt 00:00:15]} Kd8 {[%clk 00:04:24]} {[%emt 00:00:02]} 15. Qxf8+ {[%clk
00:06:08]} {[%emt 00:00:06]} Qe8 {[%clk 00:04:27]} 16. Qxe8+ {[%clk 00:05:38]}
{[%emt 00:00:34]} Kxe8 {[%clk 00:04:29]} 17. Ngxe4 {[%clk 00:05:19]} {[%emt
00:00:22]} fxe4 {[%clk 00:04:25]} {[%emt 00:00:08]} 18. Nxd5 {[%clk 00:05:10]}
{[%emt 00:00:12]} Kd7 {[%clk 00:04:20]} {[%emt 00:00:09]} 19. Nc3 {[%clk
00:05:04]} {[%emt 00:00:09]} g5 {[%clk 00:04:21]} {[%emt 00:00:03]} 20. Bg3
{[%clk 00:04:44]} {[%emt 00:00:22]} Nge7 {[%clk 00:04:22]} {[%emt 00:00:03]} 21.
d5 {[%clk 00:04:41]} {[%emt 00:00:05]} Rhf8+ {[%clk 00:03:51]} {[%emt
00:00:34]} 22. Ke2 {[%clk 00:04:39]} {[%emt 00:00:04]} Nxd5 {[%clk 00:03:30]}
{[%emt 00:00:26]} 23. Nxd5 {[%clk 00:04:33]} {[%emt 00:00:08]} a6 {[%clk
00:03:31]} {[%emt 00:00:03]} 24. Bxc6+ {[%clk 00:04:27]} {[%emt 00:00:08]} Kxc6
{[%clk 00:03:33]} 25. Nc3 {[%clk 00:04:24]} {[%emt 00:00:06]} Rad8 {[%clk
00:03:13]} {[%emt 00:00:23]} 26. Nxe4 {[%clk 00:04:12]} {[%emt 00:00:14]} Rd4
{[%clk 00:03:08]} {[%emt 00:00:09]} 27. Nc3 {[%clk 00:04:10]} {[%emt 00:00:04]}
Rfd8 {[%clk 00:03:10]} {[%emt 00:00:02]} 28. Rad1 {[%clk 00:04:09]} {[%emt
00:00:03]} b5 {[%clk 00:02:30]} {[%emt 00:00:44]} 29. Rxd4 {[%clk 00:04:06]}
{[%emt 00:00:06]} Rxd4 {[%clk 00:02:31]} {[%emt 00:00:02]} 30. Rd1 {[%clk
00:03:58]} {[%emt 00:00:10]} Rc4 {[%clk 00:02:28]} {[%emt 00:00:07]} 31. e6
{[%clk 00:03:06]} {[%emt 00:00:55]} b4 {[%clk 00:02:29]} {[%emt 00:00:03]} 32.
e7 {[%clk 00:03:06]} {[%emt 00:00:02]} bxc3 {[%clk 00:02:27]} {[%emt 00:00:05]}
33. e8=Q+ {[%clk 00:03:06]} {[%emt 00:00:03]} Kb6 {[%clk 00:02:27]} {[%emt
00:00:03]} 34. b3 {[%clk 00:02:58]} {[%emt 00:00:10]} Rc6 {[%clk 00:02:19]}
{[%emt 00:00:12]} 35. Qxc6+ {[%clk 00:02:58]} {[%emt 00:00:03]} Kxc6 {[%clk
00:02:21]} {[%emt 00:00:01]} 36. Rd3 {[%clk 00:02:56]} {[%emt 00:00:05]} Kb5
{[%clk 00:02:22]} {[%emt 00:00:03]} 37. Rxc3 {[%clk 00:02:53]} {[%emt
00:00:05]} c5 {[%clk 00:02:23]} {[%emt 00:00:02]} 38. Bd6 {[%clk 00:02:54]}
{[%emt 00:00:01]} c4 {[%clk 00:02:19]} {[%emt 00:00:08]} 39. Rxc4 {[%clk
00:02:54]} {[%emt 00:00:03]} a5 {[%clk 00:02:21]} {[%emt 00:00:01]} 40. Bf8
{[%clk 00:02:52]} {[%emt 00:00:05]} h5 {[%clk 00:02:21]} {[%emt 00:00:03]} 41.
Kf2 {[%clk 00:02:53]} {[%emt 00:00:02]} g4 {[%clk 00:02:23]} {[%emt 00:00:01]}
42. Kg3 {[%clk 00:02:55]} h4+ {[%clk 00:02:25]} {[%emt 00:00:02]} 43. Kxh4
{[%clk 00:02:56]} g3 {[%clk 00:02:27]} {[%emt 00:00:01]} 44. Kxg3 {[%clk
00:02:49]} {[%emt 00:00:09]} Ka6 {[%clk 00:02:28]} {[%emt 00:00:03]} 45. h4
{[%clk 00:02:45]} {[%emt 00:00:06]} Kb5 {[%clk 00:02:30]} {[%emt 00:00:02]} 46.
h5 {[%clk 00:02:47]} Ka6 {[%clk 00:02:30]} {[%emt 00:00:03]} 47. h6 {[%clk
00:02:48]} {[%emt 00:00:01]} Kb5 {[%clk 00:02:33]} {[%emt 00:00:02]} 48. h7
{[%clk 00:02:50]} a4 {[%clk 00:02:34]} {[%emt 00:00:02]} 49. Rxa4 {[%clk
00:02:48]} {[%emt 00:00:05]} Kb6 {[%clk 00:02:36]} {[%emt 00:00:01]} 50. h8=R
{[%clk 00:02:45]} {[%emt 00:00:06]} Kb5 {[%clk 00:02:34]} {[%emt 00:00:05]} 51.
Rc4 {[%clk 00:02:42]} {[%emt 00:00:05]} Kb6 {[%clk 00:02:36]} {[%emt 00:00:02]}
52. Kf2 {[%clk 00:02:43]} {[%emt 00:00:02]} Kb5 {[%clk 00:02:38]} {[%emt
00:00:02]} 53. g4 {[%clk 00:02:45]} Kb6 {[%clk 00:02:39]} {[%emt 00:00:02]} 54.
g5 {[%clk 00:02:46]} Kb5 {[%clk 00:02:42]} 55. g6 {[%clk 00:02:47]} {[%emt
00:00:02]} Kb6 {[%clk 00:02:44]} {[%emt 00:00:01]} 56. g7 {[%clk 00:02:49]}
{[%emt 00:00:01]} Kb5 {[%clk 00:02:46]} {[%emt 00:00:02]} 57. Ke1 {[%clk
00:02:51]} Kb6 {[%clk 00:02:46]} {[%emt 00:00:03]} 58. Kd1 {[%clk 00:02:52]}
Kb5 {[%clk 00:02:48]} {[%emt 00:00:02]} 59. Kc1 {[%clk 00:02:54]} Kb6 {[%clk
00:02:49]} {[%emt 00:00:02]} 60. Kb2 {[%clk 00:02:54]} {[%emt 00:00:03]} Kb5
{[%clk 00:02:51]} {[%emt 00:00:01]} 61. Ka1 {[%clk 00:02:40]} {[%emt 00:00:18]}
Kb6 {[%clk 00:02:53]} {[%emt 00:00:01]} 62. a3 {[%clk 00:02:42]} Kb5 {[%clk
00:02:55]} 63. Ka2 {[%clk 00:02:44]} {[%emt 00:00:01]} Kb6 {[%clk 00:02:57]} 64.
g8=B {[%clk 00:02:37]} {[%emt 00:00:10]} Kb5 {[%clk 00:02:59]} {[%emt
00:00:01]} 65. Rh1 {[%clk 00:02:30]} {[%emt 00:00:09]} Kb6 {[%clk 00:03:00]}
{[%emt 00:00:03]} 66. Rg1 {[%clk 00:02:31]} {[%emt 00:00:01]} Kb5 {[%clk
00:03:03]} 67. Rg5+ {[%clk 00:02:26]} {[%emt 00:00:07]} Kb6 {[%clk 00:03:05]}
{[%emt 00:00:02]} 68. Kb1 {[%clk 00:02:28]} Kb7 {[%clk 00:03:05]} {[%emt
00:00:04]} 69. Kc1 {[%clk 00:02:29]} {[%emt 00:00:01]} Kb6 {[%clk 00:03:07]}
{[%emt 00:00:02]} 1-0

[Event "4. Memorial Svat.Hastika OPEN"]
[Site "Jesenik, Czech Republic"]
[Date "2022.09.03"]
[Round "5.8"]
[White "Skovron, Josef"]
[Black "Tschulik, Daniel"]
[Result "1-0"]
[TimeControl "720+3"]
[WhiteFideId "329886"]
[BlackFideId "23718528"]
[WhiteElo "1821"]
[BlackElo "1099"]

1. e4 {[%clk 00:12:05]} e5 {[%clk 00:12:05]} {[%emt 00:00:02]} 2. Nf3 {[%clk
00:12:07]} Nc6 {[%clk 00:12:07]} 3. d4 {[%clk 00:12:09]} d6 {[%clk 00:12:07]}
{[%emt 00:00:03]} 4. Bc4 {[%clk 00:12:00]} {[%emt 00:00:12]} Nf6 {[%clk
00:11:58]} {[%emt 00:00:11]} 5. Ng5 {[%clk 00:10:43]} {[%emt 00:01:20]} Be6
{[%clk 00:11:29]} {[%emt 00:00:32]} 6. Bxe6 {[%clk 00:10:17]} {[%emt 00:00:29]}
fxe6 {[%clk 00:11:28]} {[%emt 00:00:04]} 7. Nxe6 {[%clk 00:10:07]} {[%emt
00:00:12]} Qe7 {[%clk 00:11:24]} {[%emt 00:00:08]} 8. d5 {[%clk 00:09:49]}
{[%emt 00:00:21]} Nd8 {[%clk 00:11:20]} {[%emt 00:00:05]} 9. Nxf8 {[%clk
00:09:35]} {[%emt 00:00:19]} Qxf8 {[%clk 00:11:15]} {[%emt 00:00:07]} 10. Nc3
{[%clk 00:09:34]} {[%emt 00:00:04]} Nf7 {[%clk 00:11:12]} {[%emt 00:00:06]} 11.
O-O {[%clk 00:09:32]} {[%emt 00:00:05]} O-O-O {[%clk 00:11:12]} {[%emt
00:00:03]} 12. a4 {[%clk 00:09:33]} {[%emt 00:00:02]} Nd7 {[%clk 00:10:57]}
{[%emt 00:00:18]} 13. a5 {[%clk 00:09:33]} {[%emt 00:00:03]} a6 {[%clk
00:10:58]} {[%emt 00:00:02]} 14. b4 {[%clk 00:09:33]} {[%emt 00:00:02]} Nb8
{[%clk 00:10:46]} {[%emt 00:00:16]} 15. Be3 {[%clk 00:09:24]} {[%emt 00:00:11]}
c6 {[%clk 00:10:11]} {[%emt 00:00:39]} 16. Qd3 {[%clk 00:09:23]} {[%emt
00:00:05]} Qe7 {[%clk 00:09:58]} {[%emt 00:00:15]} 17. Rfb1 {[%clk 00:09:11]}
{[%emt 00:00:14]} Qc7 {[%clk 00:09:54]} {[%emt 00:00:08]} 18. Bb6 {[%clk
00:09:08]} {[%emt 00:00:06]} Qe7 {[%clk 00:09:53]} {[%emt 00:00:03]} 19. Bxd8
{[%clk 00:09:04]} {[%emt 00:00:07]} Qxd8 {[%clk 00:09:52]} {[%emt 00:00:05]} 20.
Na4 {[%clk 00:09:00]} {[%emt 00:00:05]} Qc7 {[%clk 00:09:50]} {[%emt 00:00:07]}
21. Nb6+ {[%clk 00:09:01]} {[%emt 00:00:02]} Kd8 {[%clk 00:09:43]} {[%emt
00:00:10]} 22. c4 {[%clk 00:09:01]} {[%emt 00:00:02]} Nd7 {[%clk 00:09:44]}
{[%emt 00:00:03]} 23. Nxd7 {[%clk 00:08:45]} {[%emt 00:00:19]} Qxd7 {[%clk
00:09:34]} {[%emt 00:00:14]} 24. b5 {[%clk 00:08:29]} {[%emt 00:00:19]} cxb5
{[%clk 00:09:17]} {[%emt 00:00:20]} 25. cxb5 {[%clk 00:08:29]} {[%emt
00:00:03]} Ke7 {[%clk 00:09:15]} {[%emt 00:00:06]} 26. b6 {[%clk 00:08:19]}
{[%emt 00:00:13]} Nh6 {[%clk 00:08:44]} {[%emt 00:00:33]} 27. f3 {[%clk
00:08:11]} {[%emt 00:00:11]} Ng8 {[%clk 00:08:34]} {[%emt 00:00:13]} 28. Rc1
{[%clk 00:08:12]} {[%emt 00:00:02]} Nf6 {[%clk 00:08:34]} {[%emt 00:00:02]} 29.
Rc7 {[%clk 00:08:13]} {[%emt 00:00:02]} Qxc7 {[%clk 00:08:30]} {[%emt
00:00:08]} 30. bxc7 {[%clk 00:08:14]} {[%emt 00:00:01]} Nd7 {[%clk 00:08:30]}
{[%emt 00:00:04]} 31. Rc1 {[%clk 00:08:06]} {[%emt 00:00:12]} Rc8 {[%clk
00:08:29]} {[%emt 00:00:02]} 32. Qb3 {[%clk 00:07:57]} {[%emt 00:00:12]} Nc5
{[%clk 00:08:30]} {[%emt 00:00:02]} 33. Rxc5 {[%clk 00:07:58]} {[%emt
00:00:02]} dxc5 {[%clk 00:08:30]} {[%emt 00:00:03]} 34. Qxb7 {[%clk 00:07:59]}
{[%emt 00:00:02]} Kd7 {[%clk 00:08:30]} {[%emt 00:00:04]} 35. Qc6+ {[%clk
00:07:59]} {[%emt 00:00:03]} Ke7 {[%clk 00:08:28]} {[%emt 00:00:04]} 36. d6+
{[%clk 00:07:59]} {[%emt 00:00:03]} Ke6 {[%clk 00:08:30]} {[%emt 00:00:02]} 37.
d7+ {[%clk 00:07:50]} {[%emt 00:00:12]} Ke7 {[%clk 00:08:31]} {[%emt 00:00:01]}
38. dxc8=R {[%clk 00:07:30]} {[%emt 00:00:24]} c4 {[%clk 00:08:30]} {[%emt
00:00:04]} 39. Qxc4 {[%clk 00:07:15]} {[%emt 00:00:18]} g5 {[%clk 00:08:29]}
{[%emt 00:00:04]} 40. Qd5 {[%clk 00:06:40]} {[%emt 00:00:37]} g4 {[%clk
00:08:30]} {[%emt 00:00:02]} 41. Rd8 {[%clk 00:06:33]} {[%emt 00:00:10]} gxf3
{[%clk 00:08:32]} {[%emt 00:00:02]} 42. Qxe5+ {[%clk 00:06:33]} {[%emt
00:00:03]} Kf7 {[%clk 00:08:33]} {[%emt 00:00:02]} 43. Rd7+ {[%clk 00:06:20]}
{[%emt 00:00:16]} Kg8 {[%clk 00:08:18]} {[%emt 00:00:18]} 44. Qe8# {[%clk
00:06:20]} {[%emt 00:00:02]} f2+ {[%emt 00:00:05]} 1-0

[Event "4. Memorial Svat.Hastika OPEN"]
[Site "Jesenik, Czech Republic"]
[Date "2022.09.03"]
[Round "5.9"]
[White "Haidenko, Mykola"]
[Black "Taborsky, Bedrich"]
[Result "1/2-1/2"]
[TimeControl "720+3"]
[WhiteFideId "23731958"]
[BlackFideId "378151"]
[WhiteElo "1429"]
[BlackElo "1793"]

1. e4 {[%clk 00:12:06]} {[%emt 00:10:47]} g6 {[%clk 00:12:05]} {[%emt
00:00:02]} 2. Bc4 {[%clk 00:12:03]} {[%emt 00:00:06]} Bg7 {[%clk 00:12:07]} 3.
c3 {[%clk 00:12:03]} {[%emt 00:00:03]} c5 {[%clk 00:12:08]} 4. d3 {[%emt
00:00:05]} Nc6 {[%clk 00:12:09]} 5. Be3 {[%clk 00:11:59]} {[%emt 00:00:08]} b6
{[%clk 00:12:10]} {[%emt 00:00:02]} 6. Nf3 {[%clk 00:11:56]} {[%emt 00:00:06]}
Bb7 {[%clk 00:12:10]} {[%emt 00:00:03]} 7. Nbd2 {[%clk 00:11:57]} {[%emt
00:00:02]} e6 {[%clk 00:12:10]} {[%emt 00:00:03]} 8. O-O {[%clk 00:11:47]}
{[%emt 00:00:13]} Nge7 {[%clk 00:12:11]} {[%emt 00:00:01]} 9. d4 {[%clk
00:11:10]} {[%emt 00:00:41]} cxd4 {[%clk 00:12:06]} {[%emt 00:00:07]} 10. Nxd4
{[%clk 00:11:10]} {[%emt 00:00:03]} O-O {[%clk 00:12:06]} {[%emt 00:00:03]} 11.
N2b3 {[%clk 00:11:08]} {[%emt 00:00:05]} Rc8 {[%clk 00:11:57]} {[%emt
00:00:12]} 12. Be2 {[%clk 00:10:36]} {[%emt 00:00:36]} Nxd4 {[%clk 00:11:45]}
{[%emt 00:00:14]} 13. Nxd4 {[%clk 00:10:37]} {[%emt 00:00:02]} Bxe4 {[%clk
00:11:44]} {[%emt 00:00:04]} 14. Qd2 {[%clk 00:10:33]} {[%emt 00:00:07]} f5
{[%clk 00:11:31]} {[%emt 00:00:15]} 15. Bh6 {[%clk 00:10:32]} {[%emt 00:00:04]}
Rf7 {[%clk 00:10:55]} {[%emt 00:00:39]} 16. Bxg7 {[%clk 00:10:30]} {[%emt
00:00:05]} Kxg7 {[%clk 00:10:53]} {[%emt 00:00:05]} 17. Rad1 {[%clk 00:10:31]}
{[%emt 00:00:01]} Bd5 {[%clk 00:10:45]} {[%emt 00:00:11]} 18. Bf3 {[%clk
00:10:07]} {[%emt 00:00:28]} Bxf3 {[%clk 00:10:34]} {[%emt 00:00:14]} 19. Nxf3
{[%clk 00:10:09]} {[%emt 00:00:01]} Nc6 {[%clk 00:10:24]} {[%emt 00:00:12]} 20.
Nd4 {[%clk 00:09:41]} {[%emt 00:00:31]} Nxd4 {[%clk 00:10:17]} {[%emt
00:00:11]} 21. Qxd4+ {[%clk 00:09:43]} Kg8 {[%clk 00:10:18]} {[%emt 00:00:01]}
22. Rfe1 {[%clk 00:09:46]} Rc7 {[%clk 00:10:17]} {[%emt 00:00:03]} 23. Rxe6
{[%clk 00:09:46]} {[%emt 00:00:05]} Qc8 {[%clk 00:10:06]} {[%emt 00:00:13]} 24.
Re5 {[%clk 00:09:31]} {[%emt 00:00:19]} Rc6 {[%clk 00:09:53]} {[%emt 00:00:16]}
25. Rde1 {[%clk 00:08:59]} {[%emt 00:00:35]} Re6 {[%clk 00:09:51]} {[%emt
00:00:05]} 26. Qd5 {[%clk 00:08:57]} {[%emt 00:00:05]} Rfe7 {[%clk 00:09:45]}
{[%emt 00:00:08]} 27. f4 {[%clk 00:08:36]} {[%emt 00:00:24]} Kf7 {[%clk
00:09:46]} {[%emt 00:00:02]} 28. Rd1 {[%clk 00:08:23]} {[%emt 00:00:17]} Qc7
{[%clk 00:09:36]} {[%emt 00:00:13]} 29. Rde1 {[%clk 00:07:46]} {[%emt
00:00:40]} Kf6 {[%clk 00:09:31]} {[%emt 00:00:08]} 30. Qd4 {[%clk 00:07:45]}
{[%emt 00:00:04]} Kf7 {[%clk 00:09:24]} {[%emt 00:00:10]} 31. Kf2 {[%clk
00:07:15]} {[%emt 00:00:33]} Qc6 {[%clk 00:09:20]} {[%emt 00:00:07]} 32. Rxe6
{[%clk 00:06:05]} {[%emt 00:01:14]} dxe6 {[%clk 00:09:11]} {[%emt 00:00:11]} 33.
Qh8 {[%clk 00:05:58]} {[%emt 00:00:10]} Qc5+ {[%clk 00:08:52]} {[%emt
00:00:22]} 34. Re3 {[%clk 00:06:00]} {[%emt 00:00:01]} h5 {[%clk 00:08:37]}
{[%emt 00:00:18]} 35. Qh7+ {[%clk 00:06:03]} Kf6 {[%clk 00:08:39]} {[%emt
00:00:01]} 36. Qh8+ {[%clk 00:06:01]} {[%emt 00:00:04]} Kf7 {[%clk 00:08:36]}
{[%emt 00:00:06]} 37. Qh7+ {[%clk 00:06:02]} {[%emt 00:00:02]} Kf6 {[%clk
00:08:37]} {[%emt 00:00:02]} 38. Qh8+ {[%clk 00:06:04]} Kf7 {[%clk 00:08:35]}
{[%emt 00:00:06]} 1/2-1/2

[Event "4. Memorial Svat.Hastika OPEN"]
[Site "Jesenik, Czech Republic"]
[Date "2022.09.03"]
[Round "6.1"]
[White "Banasik, Krzysztof"]
[Black "Gawlas, Roman"]
[Result "1-0"]
[TimeControl "720+3"]
[WhiteFideId "1125222"]
[BlackFideId "351652"]
[WhiteElo "2166"]
[BlackElo "1906"]

1. e4 {[%clk 00:12:05]} c5 {[%clk 00:12:05]} {[%emt 00:00:01]} 2. Nf3 {[%clk
00:12:06]} {[%emt 00:00:02]} e6 {[%clk 00:12:07]} 3. d3 {[%clk 00:12:07]}
{[%emt 00:00:03]} Nc6 {[%clk 00:12:09]} {[%emt 00:00:02]} 4. g3 {[%clk
00:12:08]} {[%emt 00:00:02]} d6 {[%clk 00:12:02]} {[%emt 00:00:09]} 5. Bg2
{[%clk 00:12:09]} {[%emt 00:00:02]} Nf6 {[%clk 00:12:04]} 6. O-O {[%clk
00:12:10]} {[%emt 00:00:02]} Be7 {[%clk 00:12:06]} 7. Re1 {[%clk 00:12:11]}
{[%emt 00:00:02]} Qc7 {[%clk 00:11:50]} {[%emt 00:00:20]} 8. c3 {[%clk
00:12:08]} {[%emt 00:00:06]} O-O {[%clk 00:11:43]} {[%emt 00:00:10]} 9. a4
{[%clk 00:12:04]} {[%emt 00:00:07]} Bd7 {[%clk 00:10:51]} {[%emt 00:00:54]} 10.
Na3 {[%clk 00:11:55]} {[%emt 00:00:12]} a6 {[%clk 00:10:37]} {[%emt 00:00:17]}
11. Bf4 {[%clk 00:11:49]} {[%emt 00:00:08]} e5 {[%clk 00:08:04]} {[%emt
00:02:37]} 12. Bg5 {[%clk 00:11:45]} {[%emt 00:00:07]} Rab8 {[%clk 00:07:36]}
{[%emt 00:00:31]} 13. Nc4 {[%clk 00:11:41]} {[%emt 00:00:07]} b5 {[%clk
00:07:11]} {[%emt 00:00:29]} 14. axb5 {[%clk 00:11:42]} {[%emt 00:00:02]} axb5
{[%clk 00:07:12]} {[%emt 00:00:01]} 15. Ne3 {[%clk 00:11:44]} Be6 {[%clk
00:06:26]} {[%emt 00:00:50]} 16. d4 {[%clk 00:10:27]} {[%emt 00:01:20]} exd4
{[%clk 00:05:52]} {[%emt 00:00:37]} 17. cxd4 {[%clk 00:10:27]} {[%emt
00:00:02]} Nb4 {[%clk 00:03:47]} {[%emt 00:02:09]} 18. dxc5 {[%clk 00:08:16]}
{[%emt 00:02:14]} dxc5 {[%clk 00:03:44]} {[%emt 00:00:06]} 19. Bf4 {[%clk
00:08:15]} {[%emt 00:00:04]} Qb6 {[%clk 00:03:02]} {[%emt 00:00:45]} 20. Bxb8
{[%clk 00:08:08]} {[%emt 00:00:10]} Rxb8 {[%emt 00:00:13]} 21. Ng5 {[%clk
00:07:59]} Rd8 {[%clk 00:02:28]} {[%emt 00:00:39]} 22. Qe2 {[%clk 00:07:45]}
{[%emt 00:00:17]} Nd3 {[%clk 00:02:10]} {[%emt 00:00:21]} 23. Red1 {[%clk
00:06:47]} {[%emt 00:01:00]} c4 {[%clk 00:02:08]} {[%emt 00:00:05]} 24. b3
{[%clk 00:05:59]} {[%emt 00:00:52]} Bc5 {[%clk 00:01:45]} {[%emt 00:00:26]} 25.
e5 {[%clk 00:05:04]} {[%emt 00:00:58]} Nd7 {[%clk 00:00:32]} {[%emt 00:01:16]}
26. Nxe6 {[%clk 00:03:12]} {[%emt 00:01:55]} Qxe6 {[%clk 00:00:32]} {[%emt
00:00:02]} 27. bxc4 {[%clk 00:03:10]} {[%emt 00:00:05]} bxc4 {[%clk 00:00:31]}
{[%emt 00:00:05]} 28. Bd5 {[%clk 00:02:42]} {[%emt 00:00:30]} Qb6 {[%clk
00:00:14]} {[%emt 00:00:20]} 29. Bxc4 {[%clk 00:02:28]} {[%emt 00:00:17]} N3xe5
{[%clk 00:00:09]} {[%emt 00:00:08]} 30. Bd5 {[%clk 00:02:20]} {[%emt 00:00:11]}
Nf6 {[%clk 00:00:07]} {[%emt 00:00:05]} 31. Bg2 {[%clk 00:02:12]} {[%emt
00:00:10]} Re8 {[%clk 00:00:10]} 32. Ra8 {[%clk 00:01:34]} {[%emt 00:00:41]}
Rxa8 {[%clk 00:00:06]} {[%emt 00:00:06]} 33. Bxa8 {[%clk 00:01:36]} {[%emt
00:00:01]} Qa7 {[%clk 00:00:09]} 34. Rd8+ {[%clk 00:00:54]} {[%emt 00:00:44]}
Bf8 {[%clk 00:00:11]} {[%emt 00:00:01]} 35. Bg2 {[%clk 00:00:38]} {[%emt
00:00:19]} Qa5 {[%clk 00:00:10]} {[%emt 00:00:03]} 36. Qd2 {[%clk 00:00:36]}
{[%emt 00:00:05]} g6 {[%clk 00:00:07]} {[%emt 00:00:07]} 37. Qxa5 {[%clk
00:00:37]} {[%emt 00:00:01]} 1-0

[Event "4. Memorial Svat.Hastika OPEN"]
[Site "Jesenik, Czech Republic"]
[Date "2022.09.03"]
[Round "6.2"]
[White "Bares, Jachym"]
[Black "Gnida, Patrik"]
[Result "0-1"]
[TimeControl "720+3"]
[WhiteFideId "345075"]
[BlackFideId "351660"]
[WhiteElo "1978"]
[BlackElo "2092"]

1. e4 {[%clk 00:12:04]} {[%emt 00:00:01]} c6 {[%clk 00:12:06]} 2. Nf3 {[%clk
00:12:04]} {[%emt 00:00:03]} d5 {[%clk 00:12:08]} 3. Nc3 {[%clk 00:12:06]} dxe4
{[%clk 00:12:10]} 4. Nxe4 {[%clk 00:12:09]} Nf6 {[%clk 00:12:11]} {[%emt
00:00:02]} 5. Nxf6+ {[%clk 00:12:10]} {[%emt 00:00:02]} exf6 {[%clk 00:12:14]}
6. Bc4 {[%clk 00:11:59]} {[%emt 00:00:14]} Bd6 {[%clk 00:12:14]} {[%emt
00:00:02]} 7. Qe2+ {[%clk 00:12:00]} {[%emt 00:00:02]} Be7 {[%clk 00:11:55]}
{[%emt 00:00:23]} 8. d4 {[%clk 00:11:22]} {[%emt 00:00:40]} O-O {[%clk
00:11:56]} {[%emt 00:00:02]} 9. O-O {[%clk 00:10:28]} {[%emt 00:00:58]} Nd7
{[%clk 00:11:57]} {[%emt 00:00:01]} 10. Bf4 {[%clk 00:10:16]} {[%emt 00:00:15]}
Nb6 {[%clk 00:11:58]} {[%emt 00:00:02]} 11. Bd3 {[%clk 00:09:20]} {[%emt
00:00:59]} Nd5 {[%clk 00:11:54]} {[%emt 00:00:07]} 12. Bg3 {[%clk 00:09:12]}
{[%emt 00:00:11]} Bg4 {[%clk 00:11:30]} {[%emt 00:00:26]} 13. Rfe1 {[%clk
00:07:19]} {[%emt 00:01:57]} Re8 {[%clk 00:11:27]} {[%emt 00:00:07]} 14. a3
{[%clk 00:04:54]} {[%emt 00:02:28]} Qd7 {[%clk 00:11:05]} {[%emt 00:00:24]} 15.
h3 {[%clk 00:04:27]} {[%emt 00:00:30]} Bxa3 {[%clk 00:10:20]} {[%emt 00:00:49]}
16. Bxh7+ {[%clk 00:02:16]} {[%emt 00:02:14]} Kxh7 {[%clk 00:09:49]} {[%emt
00:00:34]} 17. Qd3+ {[%clk 00:02:18]} Bf5 {[%clk 00:09:42]} {[%emt 00:00:09]}
18. Qxa3 {[%clk 00:02:18]} {[%emt 00:00:03]} Bxc2 {[%clk 00:09:39]} {[%emt
00:00:06]} 19. Rxe8 {[%clk 00:02:04]} {[%emt 00:00:17]} Qxe8 {[%clk 00:09:36]}
{[%emt 00:00:06]} 20. Qd6 {[%clk 00:01:23]} {[%emt 00:00:43]} Qe7 {[%clk
00:09:12]} {[%emt 00:00:28]} 21. Qxe7 {[%clk 00:00:41]} {[%emt 00:00:44]} Nxe7
{[%clk 00:09:14]} {[%emt 00:00:01]} 22. Re1 {[%clk 00:00:40]} {[%emt 00:00:04]}
Nd5 {[%clk 00:09:16]} {[%emt 00:00:01]} 23. Nd2 {[%clk 00:00:35]} {[%emt
00:00:07]} Bf5 {[%clk 00:08:40]} {[%emt 00:00:39]} 24. Ne4 {[%clk 00:00:36]}
{[%emt 00:00:02]} Bxe4 {[%clk 00:08:30]} {[%emt 00:00:13]} 25. Rxe4 {[%clk
00:00:38]} {[%emt 00:00:01]} a5 {[%clk 00:08:16]} {[%emt 00:00:17]} 26. f3
{[%clk 00:00:40]} {[%emt 00:00:02]} Ra6 {[%clk 00:08:17]} {[%emt 00:00:02]} 27.
Be1 {[%clk 00:00:41]} {[%emt 00:00:01]} a4 {[%clk 00:08:17]} {[%emt 00:00:04]}
28. Re8 {[%clk 00:00:40]} {[%emt 00:00:04]} Rb6 {[%clk 00:08:15]} {[%emt
00:00:05]} 29. Ra8 {[%clk 00:00:35]} {[%emt 00:00:08]} Rxb2 {[%clk 00:08:06]}
{[%emt 00:00:12]} 30. Rxa4 {[%clk 00:00:36]} {[%emt 00:00:01]} Rb1 {[%clk
00:07:55]} {[%emt 00:00:13]} 31. Kf2 {[%clk 00:00:38]} {[%emt 00:00:01]} Nf4
{[%clk 00:07:56]} {[%emt 00:00:03]} 32. Kg3 {[%clk 00:00:27]} {[%emt 00:00:13]}
Nxg2 {[%clk 00:07:18]} {[%emt 00:00:41]} 33. Bd2 {[%clk 00:00:16]} {[%emt
00:00:14]} Rb2 {[%clk 00:06:38]} {[%emt 00:00:44]} 34. Bc1 {[%clk 00:00:05]}
{[%emt 00:00:14]} Rc2 {[%clk 00:06:40]} 35. Ba3 {[%clk 00:00:05]} {[%emt
00:00:03]} Ne3 {[%clk 00:06:35]} {[%emt 00:00:07]} 36. Rb4 {[%clk 00:00:00]}
{[%emt 00:00:05]} 0-1